bitfinex/quotes_SOLUSD_20241101
["timestamp","ask_amount","ask_price","bid_price","bid_amount"]
[1730454060509,10.30457415,166.84,166.8,31.28737415]
[1730454062108,10.30457415,166.83,166.8,14.988]
[1730454062410,10.30457415,166.81,166.77,5.9959]
[1730454064396,10.30457415,166.81,166.77,20.9866]
[1730454065005,10.30457415,166.82,166.77,31.29117415]
[1730454066191,10.30457415,166.81,166.77,31.29117415]
[1730454066887,10.30457415,166.8,166.77,14.9907]
[1730454067294,10.30457415,166.8,166.77,20.9869]
[1730454069110,10.30457415,166.8,166.77,14.9907]
[1730454069289,10.30457415,166.79,166.76,6.25943591]
[1730454070410,10.30457415,166.79,166.75,5.9966]
[1730454071704,10.30457415,166.8,166.75,10.30457415]
[1730454072619,10.30457415,166.79,166.74,31.29507415]
[1730454072797,10.30457415,166.78,166.74,20.9905]
[1730454073214,10.30457415,166.79,166.74,31.29507415]
[1730454078326,16.29987415,166.8,166.75,10.30457415]
[1730454078498,16.29987415,166.8,166.75,16.30137415]
[1730454080614,10.30457415,166.81,166.76,10.30457415]
[1730454081017,10.30457415,166.82,166.78,10.30457415]
[1730454081233,16.29827415,166.84,166.79,10.30457415]
[1730454081524,10.30457415,166.82,166.77,10.30457415]
[1730454082723,10.30457415,166.82,166.78,5.9959]
[1730454084106,10.30457415,166.83,166.78,10.30457415]
[1730454085023,10.30457415,166.83,166.79,10.30457415]
[1730454087409,10.30457415,166.83,166.78,10.30457415]
[1730454088726,10.30457415,166.83,166.78,16.30027415]
[1730454089715,10.30457415,166.83,166.79,10.30457415]
[1730454095929,10.30457415,166.86,166.81,10.30457415]
[1730454096112,10.30457415,166.87,166.82,10.30457415]
[1730454097031,10.30457415,166.88,166.83,10.30457415]
[1730454097327,10.30457415,166.88,166.83,16.29837415]
[1730454098311,10.30457415,166.89,166.85,10.30457415]
[1730454098529,16.29617415,166.9,166.85,10.30457415]
[1730454099112,10.30457415,166.89,166.84,10.30457415]
[1730454100332,10.30457415,166.89,166.84,16.29817415]
[1730454103415,16.29647415,166.89,166.84,16.29817415]
[1730454104221,16.29647415,166.89,166.85,10.30457415]
[1730454105231,10.30457415,166.89,166.85,10.30457415]
[1730454105438,10.30457415,166.9,166.86,10.30457415]
[1730454106020,10.30457415,166.9,166.85,16.29777415]
[1730454106416,16.29617415,166.9,166.85,16.29777415]
[1730454108322,5.9916,166.9,166.86,10.30457415]
[1730454110114,16.31437415,166.92,166.82,6.2061]
[1730454110318,22.30537415,166.92,166.88,10.30457415]
[1730454110517,10.30457415,166.91,166.87,10.30457415]
[1730454111519,10.30457415,166.91,166.87,16.29717415]
[1730454116429,10.30457415,166.9,166.87,14.9817]
[1730454118747,16.29577415,166.91,166.87,14.9817]
[1730454120043,10.30457415,166.91,166.87,25.28627415]
[1730454120250,10.30457415,166.91,166.87,31.27887415]
[1730454122554,16.31437415,166.92,166.87,31.27887415]
[1730454122850,10.30457415,166.91,166.87,14.9817]
[1730454123051,10.30457415,166.9,166.86,5.9929]
[1730454126745,16.29577415,166.91,166.86,10.30457415]
[1730454126950,16.29577415,166.91,166.87,10.30457415]
[1730454127836,10.30457415,166.9,166.85,31.28147415]
[1730454128144,16.29577415,166.91,166.86,10.30457415]
[1730454128454,16.29577415,166.91,166.87,10.30457415]
[1730454128953,5.9912,166.91,166.87,10.30457415]
[1730454130349,16.31437415,166.92,166.88,16.29687415]
[1730454131058,10.30457415,166.91,166.87,14.9809]
[1730454132358,16.29577415,166.91,166.87,14.9809]
[1730454133862,10.30457415,166.9,166.85,10.30457415]
[1730454134154,5.9912,166.91,166.85,10.30457415]
[1730454134155,10.30457415,166.89,166.85,16.29757415]
[1730454134532,10.30457415,166.9,166.85,16.29757415]
[1730454135856,10.30457415,166.9,166.86,10.30457415]
[1730454139958,22.30547415,166.92,166.87,10.30457415]
[1730454140154,22.30547415,166.92,166.87,16.29717415]
[1730454142143,10.30457415,166.91,166.87,16.29717415]
[1730454142945,10.30457415,166.91,166.86,25.28717415]
[1730454143949,10.30457415,166.91,166.86,31.28017415]
[1730454151764,16.29577415,166.91,166.86,31.28017415]
[1730454153251,10.30457415,166.9,166.86,14.9826]
[1730454154262,10.30457415,166.89,166.85,12.25111254]
[1730454156663,16.29627415,166.9,166.85,22.55568669]
[1730454156862,5.9917,166.9,166.86,10.30457415]
[1730454157644,5.9912,166.91,166.87,10.30457415]
[1730454159971,22.30527415,166.92,166.88,10.30457415]
[1730454160479,6.0098,166.92,166.88,10.30457415]
[1730454161546,6.0098,166.92,166.89,10.30457415]
[1730454163750,6.0098,166.92,166.89,16.29637415]
[1730454165577,6.0098,166.92,166.9,10.30457415]
[1730454166654,6.0098,166.92,166.9,16.29617415]
[1730454168544,6.0098,166.92,166.91,10.30457415]
[1730454169748,6.0098,166.92,166.9,31.27517415]
[1730454171765,6.0098,166.92,166.9,14.979]
[1730454175264,6.0098,166.92,166.9,25.28357415]
[1730454175463,6.0098,166.92,166.9,31.27517415]
[1730454177057,6.0098,166.92,166.9,25.28357415]
[1730454177277,6.0098,166.92,166.89,5.9919]
[1730454184654,6.0098,166.92,166.89,16.29647415]
[1730454184969,16.31437415,166.92,166.87,31.53969036]
[1730454185176,10.30457415,166.91,166.87,21.23511621]
[1730454185375,10.30457415,166.9,166.87,6.25351621]
[1730454186061,10.30457415,166.91,166.87,6.25351621]
[1730454186465,12.0007,166.92,166.87,22.55069036]
[1730454186466,22.30527415,166.92,166.87,22.55069036]
[1730454186681,12.0007,166.92,166.88,10.30457415]
[1730454187680,6.0098,166.92,166.88,16.29677415]
[1730454187994,10.30457415,166.91,166.87,6.25351621]
[1730454188778,22.30527415,166.92,166.88,10.30457415]
[1730454188984,12.0007,166.92,166.88,10.30457415]
[1730454189359,22.30527415,166.92,166.88,10.30457415]
[1730454191077,22.30527415,166.92,166.87,22.55069036]
[1730454191278,10.30457415,166.91,166.87,12.24611621]
[1730454192873,16.29577415,166.91,166.87,6.25351621]
[1730454193386,5.9912,166.91,166.87,16.55809036]
[1730454193580,22.30527415,166.92,166.87,22.55049036]
[1730454193798,22.30527415,166.92,166.88,10.30457415]
[1730454194384,6.0098,166.92,166.89,10.30457415]
[1730454194684,6.0098,166.92,166.89,16.29617415]
[1730454195080,6.0098,166.92,166.9,10.30457415]
[1730454195385,6.0098,166.92,166.89,31.27607415]
[1730454195787,6.0098,166.92,166.91,10.30457415]
[1730454195964,6.0098,166.92,166.9,10.30457415]
[1730454196164,6.0098,166.92,166.89,31.27607415]
[1730454196987,6.0098,166.92,166.9,10.30457415]
[1730454197483,6.0098,166.92,166.89,20.9715]
[1730454197671,6.0098,166.92,166.89,31.27607415]
[1730454202586,6.0098,166.92,166.9,10.30457415]
[1730454204698,6.0098,166.92,166.89,31.27607415]
[1730454206476,6.0098,166.92,166.9,10.30457415]
[1730454211012,6.0098,166.92,166.9,16.29617415]
[1730454213295,6.0098,166.92,166.89,31.27637415]
[1730454213801,6.0098,166.92,166.9,10.30457415]
[1730454214008,6.0098,166.92,166.91,10.30457415]
[1730454215507,6.0098,166.92,166.91,16.29577415]
[1730454226394,6.0098,166.92,166.91,40.44912815]
[1730454228298,6.0098,166.92,166.91,16.29577415]
[1730454234422,6.0098,166.92,166.9,10.30457415]
[1730454234720,6.0098,166.92,166.9,5.9916]
[1730454236327,6.0098,166.92,166.9,16.29617415]
[1730454236904,6.0098,166.92,166.89,31.53590461]
[1730454237114,10.30457415,166.9,166.89,6.25143046]
[1730454237427,20.0,166.91,166.87,10.30457415]
[1730454237731,20.0,166.91,166.87,16.55772243]
[1730454238304,21.4494,166.92,166.88,10.30457415]
[1730454238631,6.0098,166.92,166.9,10.30457415]
[1730454239134,6.0098,166.92,166.9,16.29587415]
[1730454239923,6.0098,166.92,166.91,10.30457415]
[1730454241021,6.0098,166.92,166.91,16.29577415]
[1730454242026,6.0098,166.92,166.9,10.30457415]
[1730454242224,6.0098,166.92,166.89,14.979]
[1730454251648,6.0098,166.92,166.88,16.5567435]
[1730454251824,16.31437415,166.92,166.88,6.25216935]
[1730454252335,22.30527415,166.92,166.88,6.25216935]
[1730454252629,10.30457415,166.9,166.88,6.25216935]
[1730454252931,10.30457415,166.9,166.85,25.28717415]
[1730454253125,10.30457415,166.9,166.86,6.25470753]
[1730454253928,16.29587415,166.91,166.86,16.55928168]
[1730454255230,5.9913,166.91,166.87,11.04326288]
[1730454255924,5.9913,166.91,166.88,11.04326288]
[1730454256517,5.9913,166.91,166.87,11.04326288]
[1730454257409,6.0098,166.92,166.89,11.04326288]
[1730454261840,6.0098,166.92,166.88,11.04326288]
[1730454262013,17.05306288,166.92,166.88,11.04326288]
[1730454262644,6.0098,166.92,166.88,11.04326288]
[1730454263350,11.04326288,166.9,166.87,6.25389988]
[1730454264340,17.03486288,166.9,166.87,6.25389988]
[1730454265142,5.9916,166.9,166.87,6.25389988]
[1730454265922,5.9916,166.9,166.87,17.29716276]
[1730454266121,5.9912,166.91,166.87,17.29716276]
[1730454268729,17.03446288,166.91,166.87,17.29716276]
[1730454268942,17.03446288,166.91,166.87,6.25389988]
[1730454269243,17.03446288,166.91,166.87,17.29716276]
[1730454269734,5.9912,166.91,166.87,17.29716276]
[1730454270139,17.03446288,166.91,166.87,17.29716276]
[1730454276547,17.03446288,166.91,166.87,6.25389988]
[1730454280927,11.04326288,166.9,166.87,6.25389988]
[1730454281942,17.03486288,166.9,166.87,6.25389988]
[1730454282951,11.04326288,166.9,166.87,6.25389988]
[1730454283759,17.03446288,166.91,166.86,17.03626288]
[1730454283958,17.03446288,166.91,166.87,6.24349533]
[1730454284255,6.0098,166.92,166.9,11.04326288]
[1730454286453,6.0098,166.92,166.89,17.03516288]
[1730454286751,6.0098,166.92,166.89,11.04326288]
[1730454286958,6.0098,166.92,166.87,21.22519533]
[1730454286959,23.04396288,166.92,166.87,38.26105821]
[1730454287456,23.04396288,166.92,166.88,11.04326288]
[1730454290043,23.04396288,166.92,166.87,38.26105821]
[1730454290247,11.04326288,166.91,166.87,27.21779533]
[1730454291835,17.03446288,166.91,166.87,21.22519533]
[1730454294640,11.04326288,166.9,166.87,6.24349533]
[1730454294852,11.04326288,166.89,166.85,11.04326288]
[1730454295157,11.04326288,166.9,166.86,6.24589818]
[1730454296564,17.03506288,166.9,166.86,6.24589818]
[1730454301860,11.04326288,166.88,166.86,6.24589818]
[1730454302065,11.04326288,166.87,166.82,33.65626288]
[1730454302247,11.04326288,166.87,166.83,11.04326288]
[1730454302563,11.04326288,166.88,166.83,17.29079186]
[1730454302945,11.16875288,166.89,166.84,11.04326288]
[1730454303148,5.9925,166.88,166.84,11.04326288]
[1730454303350,17.03576288,166.88,166.83,17.29079186]
[1730454304468,17.04009836,166.88,166.83,17.29512734]
[1730454305270,11.04759836,166.87,166.83,17.29512734]
[1730454306268,11.04759836,166.86,166.83,6.24752898]
[1730454307360,17.04079836,166.86,166.83,6.24752898]
[1730454310152,11.04759836,166.84,166.83,6.24752898]
[1730454310670,23.776884,166.83,166.77,14.9905]
[1730454310873,23.876884,166.84,166.8,6.24771889]
[1730454311171,20.12549,166.83,166.77,14.9905]
[1730454311470,11.04759836,166.79,166.78,6.24827147]
[1730454311661,11.04759836,166.79,166.74,39.11379836]
[1730454311864,11.04759836,166.79,166.74,32.53289836]
[1730454312061,11.04759836,166.79,166.76,6.24873016]
[1730454312251,11.04759836,166.8,166.76,6.24873016]
[1730454312957,11.04759836,166.79,166.76,6.24873016]
[1730454313150,11.04759836,166.79,166.74,32.53289836]
[1730454313352,11.04759836,166.78,166.74,17.04479836]
[1730454313548,11.04759836,166.78,166.74,23.29384501]
[1730454313968,11.04759836,166.79,166.74,23.29384501]
[1730454314177,11.04759836,166.77,166.74,6.24904665]
[1730454314374,11.04759836,166.76,166.74,6.24904665]
[1730454315874,11.063197,166.76,166.74,6.24904665]
[1730454316982,31.063197,166.75,166.74,6.24904665]
[1730454317164,20.0,166.74,166.69,26.060497]
[1730454317362,11.063197,166.73,166.7,6.25003553]
[1730454317760,11.063197,166.72,166.7,6.25003553]
[1730454317961,20.0,166.74,166.7,6.25003553]
[1730454317962,31.063197,166.74,166.7,6.25003553]
[1730454318278,20.0,166.74,166.7,17.31323253]
[1730454319654,31.063197,166.74,166.7,17.31323253]
[1730454319857,31.063197,166.74,166.7,6.25003553]
[1730454321769,37.060597,166.74,166.7,6.25003553]
[1730454323286,11.063197,166.73,166.7,6.25003553]
[1730454324864,11.063197,166.72,166.7,6.25003553]
[1730454325067,11.063197,166.71,166.67,11.063197]
[1730454325272,11.063197,166.71,166.67,17.062697]
[1730454325473,11.063197,166.72,166.68,11.063197]
[1730454326287,11.063197,166.72,166.67,17.31065399]
[1730454326474,11.063197,166.71,166.67,6.24745699]
[1730454326787,11.063197,166.71,166.67,17.31065399]
[1730454326991,11.063197,166.71,166.67,6.24745699]
[1730454327478,11.063197,166.71,166.67,17.31065399]
[1730454327675,30.0,166.7,166.67,17.31065399]
[1730454330199,30.0,166.7,166.68,11.063197]
[1730454331995,5.9982,166.72,166.68,11.063197]
[1730454335492,11.063197,166.71,166.67,12.24725699]
[1730454337092,20.0,166.68,166.67,6.24745699]
[1730454337393,31.063197,166.68,166.61,26.067497]
[1730454337593,11.063197,166.67,166.62,11.063197]
[1730454338204,11.063197,166.67,166.62,17.064797]
[1730454340475,11.063197,166.66,166.62,6.0016]
[1730454340675,11.063197,166.67,166.62,17.064797]
[1730454341903,17.062297,166.7,166.65,11.063197]
[1730454342277,17.061597,166.71,166.66,11.063197]
[1730454342607,11.063197,166.71,166.66,11.063197]
[1730454343293,20.0,166.71,166.67,11.063197]
[1730454343687,20.0,166.72,166.68,11.063197]
[1730454344096,11.063197,166.74,166.69,11.063197]
[1730454344971,11.063197,166.75,166.71,11.063197]
[1730454345176,11.063197,166.75,166.7,11.063197]
[1730454345399,17.060197,166.75,166.7,11.063197]
[1730454346884,11.063197,166.74,166.7,11.063197]
[1730454347606,11.063197,166.73,166.68,27.027697]
[1730454348307,11.063197,166.73,166.68,33.027097]
[1730454353403,11.063197,166.74,166.69,11.063197]
[1730454354996,17.060697,166.74,166.69,11.063197]
[1730454356797,11.063197,166.73,166.68,33.027097]
[1730454357793,11.063197,166.71,166.66,11.063197]
[1730454358813,11.063197,166.72,166.68,11.063197]
[1730454359005,5.9983,166.72,166.68,11.063197]
[1730454359189,11.063197,166.74,166.69,11.063197]
[1730454360413,5.9977,166.73,166.69,11.063197]
[1730454361721,11.063197,166.74,166.69,11.063197]
[1730454362811,17.060597,166.74,166.69,11.063197]
[1730454364395,17.060597,166.74,166.69,17.062197]
[1730454364813,11.063197,166.75,166.7,11.063197]
[1730454365007,20.0,166.74,166.7,11.063197]
[1730454366017,31.063197,166.74,166.69,17.062197]
[1730454367015,11.063197,166.72,166.69,5.999]
[1730454367222,11.063197,166.72,166.67,32.062597]
[1730454368399,31.063197,166.74,166.69,11.063197]
[1730454368599,37.060497,166.74,166.69,11.063197]
[1730454369410,11.063197,166.73,166.68,11.063197]
[1730454369919,17.060897,166.73,166.68,17.062597]
[1730454370124,11.063197,166.72,166.68,5.9994]
[1730454371199,17.060897,166.73,166.68,11.063197]
[1730454372215,5.9977,166.73,166.69,11.063197]
[1730454372821,17.059897,166.76,166.71,11.063197]
[1730454374021,17.059897,166.76,166.71,17.061497]
[1730454374238,5.9967,166.76,166.72,11.063197]
[1730454375729,17.059897,166.76,166.71,11.063197]
[1730454377328,17.059897,166.76,166.72,11.063197]
[1730454378129,11.063197,166.77,166.72,11.063197]
[1730454378825,5.9961,166.78,166.73,11.063197]
[1730454378826,11.063197,166.78,166.73,11.063197]
[1730454379046,11.063197,166.8,166.75,11.063197]
[1730454379336,11.063197,166.81,166.76,11.063197]
[1730454379505,11.063197,166.81,166.77,5.9962]
[1730454382031,11.063197,166.8,166.76,26.054597]
[1730454382423,11.063197,166.8,166.76,14.9914]
[1730454382621,11.063197,166.79,166.76,14.9914]
[1730454382825,11.063197,166.78,166.76,14.9914]
[1730454385342,11.063197,166.79,166.76,14.9914]
[1730454390624,11.063197,166.8,166.75,11.063197]
[1730454391835,11.063197,166.8,166.75,17.059997]
[1730454393341,17.058197,166.81,166.76,11.063197]
[1730454396746,5.9945,166.82,166.78,11.063197]
[1730454397630,11.063197,166.82,166.77,11.063197]
[1730454399064,17.057797,166.82,166.77,11.063197]
[1730454400856,11.063197,166.8,166.76,26.054797]
[1730454401050,11.063197,166.8,166.76,32.051397]
[1730454401255,11.063197,166.81,166.76,32.051397]
[1730454401447,11.063197,166.79,166.76,14.9916]
[1730454402051,11.063197,166.79,166.75,5.9969]
[1730454403137,11.063197,166.8,166.75,11.063197]
[1730454403345,11.063197,166.8,166.76,11.063197]
[1730454403832,11.063197,166.81,166.76,11.063197]
[1730454404161,20.0,166.81,166.77,11.063197]
[1730454404455,11.063197,166.82,166.77,11.063197]
[1730454406237,17.057797,166.82,166.77,11.063197]
[1730454406658,17.057797,166.82,166.77,17.059397]
[1730454406941,11.063197,166.81,166.77,5.9962]
[1730454407464,11.063197,166.8,166.77,5.9962]
[1730454407956,11.063197,166.8,166.76,5.9966]
[1730454409761,11.063197,166.81,166.76,11.063197]
[1730454410847,11.063197,166.8,166.75,32.052697]
[1730454411161,11.063197,166.79,166.75,20.9895]
[1730454413039,11.063197,166.79,166.74,6.22256528]
[1730454413040,11.063197,166.78,166.74,6.22256528]
[1730454413243,11.063197,166.75,166.74,6.22256528]
[1730454413441,11.063197,166.75,166.7,5.9987]
[1730454413669,11.063197,166.74,166.72,6.21840154]
[1730454414351,11.063197,166.74,166.7,20.9957]
[1730454414861,11.063197,166.74,166.7,27.21718887]
[1730454415867,11.063197,166.75,166.7,38.28038587]
[1730454420367,11.063197,166.74,166.7,38.28038587]
[1730454421658,11.063197,166.76,166.71,11.063197]
[1730454422045,11.063197,166.75,166.7,38.28038587]
[1730454425869,11.063197,166.74,166.7,38.28038587]
[1730454427177,11.063197,166.76,166.71,11.063197]
[1730454427472,11.063197,166.79,166.75,11.063197]
[1730454427673,11.063197,166.78,166.74,11.063197]
[1730454428049,11.063197,166.79,166.74,11.063197]
[1730454428470,11.063197,166.79,166.75,5.997]
[1730454429871,11.063197,166.78,166.75,5.997]
[1730454430954,11.063197,166.78,166.74,26.056297]
[1730454430955,11.063197,166.81,166.76,11.063197]
[1730454431179,11.063197,166.84,166.79,11.063197]
[1730454431475,30.0,166.8,166.74,14.9931]
[1730454431855,30.0,166.8,166.75,24.153354]
[1730454432057,5.9919,166.89,166.75,24.153354]
[1730454432675,11.063197,166.85,166.8,11.063197]
[1730454433074,11.063197,166.85,166.8,17.057997]
[1730454433468,11.063197,166.84,166.8,5.9948]
[1730454433870,11.063197,166.82,166.79,14.9883]
[1730454434096,11.063197,166.83,166.79,14.9883]
[1730454434674,5.9928,166.87,166.8,11.063197]
[1730454434878,11.063197,166.86,166.81,11.063197]
[1730454435081,20.0,166.85,166.81,11.063197]
[1730454435659,31.063197,166.85,166.81,5.9946]
[1730454437482,11.063197,166.88,166.83,11.063197]
[1730454437671,20.0,166.87,166.84,11.063197]
[1730454437869,11.063197,166.88,166.84,11.063197]
[1730454438279,11.063197,166.89,166.84,11.063197]
[1730454438885,11.063197,166.91,166.86,11.063197]
[1730454439067,30.0,166.87,166.86,11.063197]
[1730454439293,30.0,166.87,166.85,11.063197]
[1730454439585,11.063197,166.9,166.85,11.063197]
[1730454440483,11.063197,166.9,166.85,17.056297]
[1730454441568,17.054797,166.9,166.85,17.056297]
[1730454442567,11.063197,166.9,166.85,32.039797]
[1730454442761,20.0,166.91,166.87,11.063197]
[1730454443883,31.063197,166.91,166.86,17.055997]
[1730454444268,20.0,166.91,166.87,11.063197]
[1730454444769,31.063197,166.91,166.86,17.055997]
[1730454445593,20.0,166.91,166.87,11.063197]
[1730454446089,31.063197,166.91,166.86,11.063197]
[1730454446685,31.063197,166.91,166.86,17.056097]
[1730454446991,11.063197,166.9,166.85,32.039997]
[1730454451190,31.063197,166.91,166.86,11.063197]
[1730454451487,20.0,166.91,166.87,11.063197]
[1730454452394,6.0098,166.92,166.89,11.063197]
[1730454452876,6.0098,166.92,166.89,17.054997]
[1730454454385,6.0098,166.92,166.88,11.063197]
[1730454455589,6.0098,166.92,166.89,5.9919]
[1730454457181,6.0098,166.92,166.89,17.055097]
[1730454460670,6.0098,166.92,166.89,5.9919]
[1730454461383,6.0098,166.92,166.89,17.055097]
[1730454463201,6.0098,166.92,166.89,5.9919]
[1730454464501,17.072997,166.92,166.87,20.9731]
[1730454464682,23.063997,166.92,166.87,20.9731]
[1730454465604,11.063197,166.91,166.87,14.9808]
[1730454465899,17.054397,166.91,166.87,14.9808]
[1730454467479,17.054397,166.91,166.87,20.9734]
[1730454468385,11.063197,166.9,166.85,17.056597]
[1730454468603,11.063197,166.89,166.85,5.9934]
[1730454469103,11.063197,166.9,166.85,17.056597]
[1730454469495,11.063197,166.9,166.85,32.040097]
[1730454470009,17.054397,166.91,166.86,11.063197]
[1730454470606,23.063997,166.92,166.87,11.063197]
[1730454473009,23.063997,166.92,166.86,32.038597]
[1730454473303,11.063197,166.91,166.86,32.038597]
[1730454474696,17.072997,166.92,166.87,11.063197]
[1730454475302,11.063197,166.91,166.86,32.038597]
[1730454480192,11.063197,166.89,166.86,20.9754]
[1730454480719,11.063197,166.88,166.84,12.22930877]
[1730454481293,11.063197,166.89,166.84,23.29250577]
[1730454481590,11.063197,166.91,166.86,11.063197]
[1730454482710,11.063197,166.91,166.87,5.9926]
[1730454482901,6.0098,166.92,166.87,32.037497]
[1730454483417,5.56631734,166.92,166.87,32.037497]
[1730454484505,5.56631734,166.92,166.88,11.063197]
[1730454485818,5.56631734,166.92,166.88,17.055097]
[1730454485997,16.62951434,166.92,166.88,5.9919]
[1730454486198,16.62951434,166.92,166.88,20.9727]
[1730454486395,5.56631734,166.92,166.88,32.035897]
[1730454488918,5.56631734,166.92,166.91,11.063197]
[1730454489118,5.56631734,166.92,166.9,11.063197]
[1730454490699,5.56631734,166.92,166.91,5.9912]
[1730454490903,5.56631734,166.92,166.89,11.063197]
[1730454491123,5.56631734,166.92,166.89,20.9715]
[1730454491420,5.56631734,166.92,166.89,32.034697]
[1730454500315,5.56631734,166.92,166.9,11.063197]
[1730454500514,16.62951434,166.92,166.89,20.9715]
[1730454501025,11.063197,166.91,166.89,20.9715]
[1730454501729,16.62951434,166.92,166.89,20.9715]
[1730454502516,16.62951434,166.92,166.89,14.9799]
[1730454502717,5.56631734,166.92,166.89,14.9799]
[1730454503733,5.56631734,166.92,166.89,20.9718]
[1730454504837,5.56631734,166.92,166.89,26.043097]
[1730454505337,5.56631734,166.92,166.9,11.063197]
[1730454506829,5.56631734,166.92,166.91,5.9912]
[1730454518148,5.56631734,166.92,166.9,11.063197]
[1730454518446,5.56631734,166.92,166.9,20.9705]
[1730454518647,5.56631734,166.92,166.9,32.033697]
[1730454519037,5.56631734,166.92,166.9,20.9705]
[1730454519628,5.56631734,166.92,166.9,32.033697]
[1730454520051,5.56631734,166.92,166.91,11.063197]
[1730454520346,5.56631734,166.92,166.91,17.054397]
[1730454523157,5.56631734,166.92,166.9,32.033797]
[1730454523342,11.063197,166.91,166.9,20.9706]
[1730454523652,16.62951434,166.92,166.9,20.9706]
[1730454524436,5.56631734,166.92,166.9,20.9706]
[1730454524854,5.56631734,166.92,166.9,32.033797]
[1730454525068,5.56631734,166.92,166.91,11.063197]
[1730454526157,5.56631734,166.92,166.91,17.054397]
[1730454532248,5.56631734,166.92,166.9,32.033797]
[1730454534147,5.56631734,166.92,166.9,20.9706]
[1730454538552,5.56631734,166.92,166.9,32.033797]
[1730454539553,5.56631734,166.92,166.91,17.054397]
[1730454542356,5.56631734,166.92,166.9,32.033797]
[1730454543935,5.56631734,166.92,166.9,20.9706]
[1730454546062,5.56631734,166.92,166.9,32.033797]
[1730454547455,5.56631734,166.92,166.91,17.054397]
[1730454557580,5.56631734,166.92,166.91,41.207751]
[1730454562174,5.56631734,166.92,166.91,61.207751]
[1730454562462,1.734e-05,166.92,166.91,61.207751]
[1730454572672,1.734e-05,166.92,166.91,61.082261]
[1730454578766,1.734e-05,166.92,166.91,61.307751]
[1730454579284,1.734e-05,166.92,166.91,61.407751]
[1730454580181,1.734e-05,166.92,166.91,61.307751]
[1730454580371,1.734e-05,166.92,166.91,61.407751]
[1730454581972,1.734e-05,166.92,166.91,61.307751]
[1730454582371,1.734e-05,166.92,166.91,37.154397]
[1730454582880,1.734e-05,166.92,166.91,37.054397]
[1730454583088,1.734e-05,166.92,166.91,37.179887]
[1730454583266,1.734e-05,166.92,166.91,37.279887]
[1730454583467,1.734e-05,166.92,166.91,37.179887]
[1730454583772,1.734e-05,166.92,166.91,61.407751]
[1730454585989,1.734e-05,166.92,166.91,61.307751]
[1730454586780,1.734e-05,166.92,166.91,37.054397]
[1730454587193,1.734e-05,166.92,166.91,37.179887]
[1730454587896,1.734e-05,166.92,166.91,37.054397]
[1730454590180,1.734e-05,166.92,166.91,61.082261]
[1730454591272,1.734e-05,166.92,166.91,61.207751]
[1730454592688,1.734e-05,166.92,166.91,61.307751]
[1730454593974,1.734e-05,166.92,166.91,61.207751]
[1730454594684,1.734e-05,166.92,166.91,61.307751]
[1730454596289,1.734e-05,166.92,166.91,61.207751]
[1730454596666,1.734e-05,166.92,166.91,61.307751]
[1730454597185,1.734e-05,166.92,166.91,61.207751]
[1730454598093,1.734e-05,166.92,166.91,60.956771]
[1730454598990,1.734e-05,166.92,166.91,61.156771]
[1730454599293,1.734e-05,166.92,166.91,61.407751]
[1730454601673,1.734e-05,166.92,166.91,61.307751]
[1730454601873,1.734e-05,166.92,166.91,61.207751]
[1730454602089,1.734e-05,166.92,166.91,61.307751]
[1730454602699,1.734e-05,166.92,166.91,37.054397]
[1730454604292,1.734e-05,166.92,166.91,61.407751]
[1730454606002,1.734e-05,166.92,166.91,61.207751]
[1730454606302,1.734e-05,166.92,166.91,61.307751]
[1730454607798,1.734e-05,166.92,166.91,61.207751]
[1730454608309,1.734e-05,166.92,166.91,61.307751]
[1730454608601,1.734e-05,166.92,166.91,61.207751]
[1730454608798,1.734e-05,166.92,166.91,60.956771]
[1730454609902,1.734e-05,166.92,166.91,37.054397]
[1730454611587,1.734e-05,166.92,166.91,60.956771]
[1730454623015,1.734e-05,166.92,166.91,17.054397]
[1730454652138,1.734e-05,166.92,166.91,5.9912]
[1730454659517,1.734e-05,166.92,166.9,14.979]
[1730454659717,1.734e-05,166.92,166.9,20.9706]
[1730454660035,1.734e-05,166.92,166.9,14.979]
[1730454660219,1.734e-05,166.92,166.9,20.9706]
[1730454662038,11.06321434,166.92,166.9,20.9706]
[1730454662244,1.734e-05,166.92,166.9,20.9706]
[1730454662947,11.06321434,166.92,166.89,6.2565233]
[1730454663140,1.734e-05,166.92,166.89,6.2565233]